bitfinex/quotes_ETHUSD_20210701
["timestamp","ask_amount","ask_price","bid_price","bid_amount"]
[1625154931623,3.5318,2123.4,2122.6,5.01]
[1625154931728,13.01,2123.8,2122.1,14.5991278]
[1625154931729,10.0,2123.6,2122.1,14.5991278]
[1625154931876,18.0,2123.6,2122.1,9.41923]
[1625154931981,0.01939795,2123.0,2122.1,9.41923]
[1625154932795,7.08510795,2123.0,2122.0,9.9967]
[1625154932896,7.08510795,2123.0,2121.9,7.06588]
[1625154932996,3.53283,2122.8,2121.9,7.06588]
[1625154933199,3.53283,2122.8,2121.9,12.07588]
[1625154933296,3.53283,2122.8,2121.9,7.06588]
[1625154933447,3.53283,2122.8,2121.9,12.07588]
[1625154935742,3.55213076,2122.8,2121.9,12.07588]
[1625154936995,3.55213076,2122.8,2121.9,12.8674543]
[1625154937094,3.55213076,2122.8,2121.9,12.87898302]
[1625154937196,3.55213076,2122.8,2122.3,7.06418]
[1625154937347,3.55213076,2122.8,2122.3,10.97338]
[1625154937445,3.55213076,2122.8,2122.3,15.98338]
[1625154939281,3.53283,2122.8,2122.3,15.98338]
[1625154939576,3.53283,2122.8,2122.4,0.08]
[1625154939726,3.53283,2122.8,2122.4,7.14415]
[1625154939927,3.53283,2122.8,2122.4,12.15415]
[1625154940227,3.53283,2122.8,2122.4,12.07415]
[1625154941593,7.0649432,2123.2,2122.4,12.08713918]
[1625154941696,7.0649432,2123.2,2122.4,12.07415]
[1625154942094,3.53215,2123.2,2122.4,12.07415]
[1625154942392,11.53215,2123.2,2122.4,12.07415]
[1625154942493,3.53215,2123.2,2122.4,12.07415]
[1625154944634,3.53215,2123.2,2122.5,0.02154005]
[1625154945035,11.53215,2123.2,2122.5,0.02154005]
[1625154945238,3.53269,2122.9,2122.5,0.02154005]
[1625154945638,0.06,2122.8,2122.5,0.02154005]
[1625154946213,3.53269,2122.9,2122.5,0.02154005]
[1625154946214,7.06606,2122.7,2122.5,0.02154005]
[1625154946362,3.53269,2122.9,2122.5,0.02154005]
[1625154947059,3.5330283,2122.8,2122.5,0.02154005]
[1625154948276,7.06599,2122.7,2122.5,0.02154005]
[1625154948277,15.06599,2122.7,2122.5,0.02154005]
[1625154953668,8.0,2122.7,2122.5,0.02154005]
[1625154954222,3.53292,2122.8,2122.5,0.02154005]
[1625154956862,7.06564,2122.8,2122.5,0.02154005]
[1625154957911,3.53292,2122.8,2122.5,0.02154005]
[1625154958018,3.53238,2123.2,2122.5,0.02154005]
[1625154958114,3.53238,2123.2,2122.5,0.0314087]
[1625154958210,3.53238,2123.2,2122.5,0.02154005]
[1625154958312,3.53238,2123.2,2122.8,7.06372]
[1625154958513,3.53238,2123.2,2122.5,0.02154005]
[1625154958962,7.06443,2123.2,2122.5,0.02154005]
[1625154959587,3.53233,2123.0,2122.5,0.02154005]
[1625154959887,8.0,2123.2,2122.5,0.02154005]
[1625154960136,13.01,2123.2,2122.5,0.02154005]
[1625154960387,3.53269,2122.9,2122.5,0.02154005]
[1625154960536,10.59823,2122.9,2122.5,0.02154005]
[1625154960742,3.53269,2122.9,2122.5,0.02154005]
[1625154960846,11.53269,2122.9,2122.5,0.02154005]
[1625154960941,3.5729642,2122.8,2122.5,0.02154005]
[1625154961090,6.9661642,2122.8,2122.5,0.02154005]
[1625154961238,6.9261642,2122.8,2122.5,0.02154005]
[1625154962583,11.9361642,2122.8,2122.5,0.02154005]
[1625154963485,7.06605,2122.7,2122.5,0.02154005]
[1625154963584,8.0,2122.7,2122.5,0.02154005]
[1625154963685,8.5429642,2122.8,2122.5,0.02154005]
[1625154963786,8.0,2122.7,2122.5,0.02154005]
[1625154963885,8.5429642,2122.8,2122.5,0.02154005]
[1625154964020,8.6029642,2122.8,2122.5,0.02154005]
[1625154965127,7.06618,2122.7,2122.5,0.02154005]
[1625154965375,0.1,2122.6,2122.5,0.02154005]
[1625154966578,20.07618,2122.7,2122.5,0.02154005]
[1625154970638,0.04,2122.6,2122.5,0.02154005]
[1625154971283,20.10788179,2122.7,2122.5,0.02154005]
[1625154971431,20.10788179,2122.7,2121.9,6.82059808]
[1625154971532,3.53334,2122.4,2121.9,6.82059808]
[1625154972682,3.53334,2122.4,2121.7,7.0671]
[1625154972883,3.53334,2122.4,2121.7,12.0771]
[1625154973386,11.5334357,2122.5,2121.7,12.0771]
[1625154973735,3.53372,2122.1,2121.7,12.0771]
[1625154974036,3.53372,2122.1,2121.8,0.1]
[1625154974284,3.53372,2122.1,2121.7,5.01]
[1625154974483,3.53372,2122.1,2121.5,14.43109]
[1625154976620,3.56543309,2122.1,2121.5,14.43109]
[1625154978073,8.57543309,2122.1,2121.5,9.42109]
[1625154978174,20.0,2121.8,2121.3,13.95883]
[1625154978273,20.0,2121.8,2121.3,6.89]
[1625154978419,36.5123,2121.8,2121.3,6.89]
[1625154978522,0.04,2121.7,2120.8,6.89]
[1625154978721,36.5123,2121.8,2120.8,6.89]
[1625154978876,3.53502,2121.4,2120.8,6.89]
[1625154979120,8.54502,2121.4,2120.8,6.89]
[1625154979221,5.75192009,2121.4,2120.8,6.89]
[1625154979470,3.5355929,2121.3,2120.8,6.89]
[1625154979571,7.07128,2121.2,2120.8,6.89]
[1625154979670,9.4706929,2121.3,2120.8,6.89]
[1625154979832,17.4706929,2121.3,2120.8,6.89]
[1625154979926,13.9351,2121.3,2120.8,6.89]
[1625154980231,5.9351,2121.3,2120.8,6.89]
[1625154980385,4.3125,2121.3,2120.8,9.4333792]
[1625154980538,4.3125,2121.3,2120.9,2.8774699]
[1625154980632,1.08904797,2121.8,2121.1,7.06814]
[1625154980883,1.08904797,2121.8,2121.1,12.07814]
[1625154980980,1.08904797,2121.8,2121.2,2.6774699]
[1625154981180,1.08904797,2121.8,2121.2,7.6874699]
[1625154981277,0.01964115,2122.0,2121.2,7.6874699]
[1625154982197,0.03171719,2121.9,2121.2,7.6874699]
[1625154982643,0.03171719,2121.9,2121.2,14.7555399]
[1625154982996,1.12076516,2121.9,2121.2,14.7555399]
[1625154983292,1.12076516,2121.9,2121.2,7.6874699]
[1625154983597,1.12076516,2121.9,2121.2,5.01]
[1625154983694,1.12076516,2121.9,2121.0,14.43419]
[1625154983796,1.12076516,2121.9,2121.0,50.7140765]
[1625154984529,1.12076516,2121.9,2121.0,54.5541765]
[1625154985679,1.12076516,2121.9,2121.0,54.5638592]
[1625154985776,9.12076516,2121.9,2121.0,54.5638592]
[1625154985881,1.12076516,2121.9,2121.0,13.26429]
[1625154986038,1.12076516,2121.9,2120.8,28.5062]
[1625154986039,3.53477,2121.7,2120.8,17.6483]
[1625154986234,8.54477,2121.7,2120.8,17.6483]
[1625154986333,3.53477,2121.7,2120.8,17.6483]
[1625154986428,16.54477,2121.7,2120.8,17.6483]
[1625154986586,3.5353,2121.4,2120.6,9.42609]
[1625154986885,10.6058,2121.4,2120.5,10.3572]
[1625154987132,18.6058,2121.4,2120.5,10.3572]
[1625154987234,11.5353,2121.4,2120.5,15.3672]
[1625154987584,11.5353,2121.4,2120.5,22.2572]
[1625154987687,11.56702542,2121.4,2120.5,22.2572]
[1625154987881,11.56702542,2121.4,2120.5,17.2472]
[1625154988092,7.07148,2121.1,2120.5,17.2472]
[1625154988392,7.07148,2121.1,2120.5,6.89]
[1625154989089,3.53582,2121.0,2120.5,6.89]
[1625154990241,7.07208,2120.9,2120.5,6.89]
[1625154990441,15.07208,2120.9,2120.5,6.89]
[1625154990843,18.93268,2120.9,2120.5,6.89]
[1625154990943,20.58428,2120.9,2120.5,6.89]
[1625154992222,12.58428,2120.9,2120.5,6.89]
[1625154992876,10.93268,2120.9,2120.5,6.89]
[1625154993074,18.93268,2120.9,2120.5,6.89]
[1625154993224,11.8606,2120.9,2120.5,6.89]
[1625154993388,11.89232952,2120.9,2120.5,6.89]
[1625154993888,7.07241,2120.8,2120.5,6.89]
[1625154993986,10.60861,2120.8,2120.5,6.89]
[1625154994188,3.5362,2120.8,2120.5,6.89]
[1625154994295,0.03172952,2120.9,2120.5,6.89]
[1625154995089,0.03172952,2120.9,2120.6,0.06]
[1625154995633,0.03172952,2120.9,2120.6,2.7374699]
[1625154995728,0.03172952,2120.9,2120.6,6.5745699]
[1625154995878,0.03172952,2120.9,2120.7,0.04]
[1625154995983,0.03172952,2120.9,2120.6,1.3456699]
[1625154996089,0.03172952,2120.9,2120.1,13.2068633]
[1625154996090,7.07286,2120.7,2119.9,7.21066884]
[1625154996240,20.0,2120.8,2119.9,0.13820884]
[1625154996241,30.0,2120.3,2119.9,0.13820884]
[1625154996336,32.4744,2120.3,2119.9,0.13820884]
[1625154996483,4.4744,2120.3,2119.9,0.13820884]
[1625154996594,4.4744,2120.3,2119.1,7.2712332]
[1625154996934,0.2,2120.2,2119.1,7.2712332]
[1625154997083,0.2,2120.2,2118.9,2.22360768]
[1625154997084,3.5376063,2120.1,2118.9,2.22360768]
[1625154997189,3.5376063,2120.1,2118.9,0.13825357]
[1625154997190,9.43489,2119.6,2118.9,0.13825357]
[1625154997293,9.43489,2119.6,2118.8,10.87]
[1625154997294,3.53826,2119.4,2118.8,10.87]
[1625154997482,3.53826,2119.4,2118.8,3.98]
[1625154998220,8.54826,2119.4,2118.8,3.98]
[1625154998321,16.54826,2119.4,2118.8,3.98]
[1625154998473,7.07676,2119.2,2118.8,3.98]
[1625154998573,7.07676,2119.2,2118.1,10.9844]
[1625154998670,7.07676,2119.2,2118.0,8.58641278]
[1625154998671,15.07676,2119.2,2118.0,2.22343528]
[1625154998772,15.07676,2119.2,2118.0,12.14015411]
[1625154998773,13.06696705,2119.2,2118.0,12.14015411]
[1625154998871,13.01,2119.2,2118.0,12.14015411]
[1625154998971,8.0,2119.2,2118.0,12.14015411]
[1625154999273,3.53887,2119.0,2118.0,12.14015411]
[1625154999424,9.32737,2119.0,2118.0,17.15015411]
[1625154999522,17.32737,2119.0,2118.0,17.15015411]
[1625155000129,9.32737,2119.0,2118.0,17.15015411]
[1625155000234,7.86937,2119.0,2118.0,19.52428798]
[1625155000327,4.3305,2119.0,2118.0,19.52428798]
[1625155001276,10.5095,2119.0,2118.0,19.52428798]
[1625155001529,10.5095,2119.0,2118.0,26.60089798]
[1625155002777,10.5095,2119.0,2118.0,19.52428798]
[1625155003637,18.5095,2119.0,2118.0,16.81426588]
[1625155003738,10.5095,2119.0,2118.0,16.81426588]
[1625155003887,10.5095,2119.0,2118.0,38.89096588]
[1625155003985,6.179,2119.0,2118.1,0.15]
[1625155004089,6.179,2119.0,2118.1,3.6941]
[1625155004190,6.179,2119.0,2118.2,15.0]
[1625155004283,6.2120068,2119.0,2118.2,19.6757148]
[1625155004381,6.2120068,2119.0,2118.2,19.5157148]
[1625155004740,2.01859082,2119.0,2118.3,0.31]
[1625155004931,2.01859082,2119.0,2118.4,4.50143623]
[1625155005031,2.01859082,2119.0,2118.5,7.0741]
[1625155005133,2.01859082,2119.0,2118.5,7.2241]
[1625155005231,2.01859082,2119.0,2118.5,12.2341]
[1625155005480,2.01859082,2119.0,2118.5,12.0841]
[1625155006334,2.01859082,2119.0,2118.5,5.01]
[1625155006532,2.01859082,2119.0,2118.0,17.3647779]
[1625155006634,2.01859082,2119.0,2118.0,15.0648]
[1625155007281,2.01859082,2119.0,2118.0,24.49988]
[1625155007431,2.01859082,2119.0,2118.0,26.91596212]
[1625155008033,0.01956183,2118.9,2118.0,26.91596212]
[1625155008130,0.01956183,2118.9,2118.0,29.00131623]
[1625155009215,2.01859082,2119.0,2118.1,0.32807246]
[1625155009309,2.01859082,2119.0,2118.1,15.32807246]
[1625155009607,2.01859082,2119.0,2118.2,4.67123489]
[1625155009706,0.03176145,2119.0,2118.3,28.67846003]
[1625155009809,0.03176145,2119.0,2118.4,15.0]
[1625155009957,0.03176145,2119.0,2118.4,15.93343592]
[1625155010055,0.03176145,2119.0,2118.5,0.31]
[1625155010208,0.03176145,2119.0,2118.5,5.70558122]
[1625155010307,0.03176145,2119.0,2118.6,2.35515277]
[1625155010403,0.03176145,2119.0,2118.6,4.77123489]
[1625155010559,0.03176145,2119.0,2118.8,7.07375]
[1625155010754,0.03176145,2119.0,2118.9,0.16]
[1625155011205,0.03176145,2119.0,2118.8,14.64983212]
[1625155013381,0.03176145,2119.0,2118.8,16.90498489]
[1625155013585,0.03176145,2119.0,2118.9,0.14]
[1625155013688,0.03176145,2119.0,2118.9,4.3421]
[1625155013931,0.03176145,2119.0,2118.9,14.02333489]
[1625155014129,0.03176145,2119.0,2118.9,22.81685149]
[1625155015083,17.71645,2120.1,2118.9,22.81685149]
[1625155015284,9.71645,2120.1,2118.9,22.67685149]
[1625155015387,8.0,2120.0,2118.9,22.67685149]
[1625155016186,16.79099,2120.1,2119.1,7.07406]
[1625155016336,9.71645,2120.1,2119.1,7.07406]
[1625155016434,9.71645,2120.1,2119.1,12.08406]
[1625155017087,9.71645,2120.1,2119.1,5.01]
[1625155017236,0.18,2120.0,2119.1,5.01]
[1625155017340,0.18,2120.0,2118.9,16.21959872]
[1625155017735,8.18,2120.0,2118.9,11.20959872]
[1625155017839,3.7175517,2120.0,2118.9,2.41608212]
[1625155017945,3.7175517,2120.0,2118.7,20.35617]
[1625155017946,16.7275517,2120.0,2118.7,20.35617]
[1625155018087,0.2,2119.9,2118.7,10.9245]
[1625155018329,3.5381338,2119.6,2118.7,10.9245]
[1625155018432,3.53822,2119.5,2118.7,10.9245]
[1625155018780,3.53822,2119.5,2118.5,63.2546937]
[1625155018879,3.53822,2119.5,2118.5,52.5131937]
[1625155019032,3.53822,2119.5,2118.5,57.5231937]
[1625155019229,10.61458,2119.5,2118.5,64.5992537]
[1625155019628,24.51188,2119.9,2118.5,64.5992537]
[1625155019724,24.51188,2119.9,2118.6,0.08]
[1625155019829,3.53738,2119.9,2118.6,0.08]
[1625155019927,3.53738,2119.9,2118.6,0.09156295]
[1625155020176,3.53738,2119.9,2118.6,2.41608212]
[1625155020491,3.53738,2119.9,2119.1,7.07425]
[1625155020689,3.53738,2119.9,2119.1,5.01]
[1625155020940,3.53738,2119.9,2118.8,5.01]
[1625155021045,5.01,2119.9,2118.6,2.41608212]
[1625155021191,0.2,2119.8,2118.6,2.41608212]
[1625155021638,3.53799,2119.7,2118.6,2.41608212]
[1625155021739,7.0759729,2119.7,2118.6,2.41608212]
[1625155021841,7.07607,2119.6,2118.6,9.49186212]
[1625155021944,8.0,2119.6,2118.6,9.49186212]
[1625155022043,8.0,2119.6,2118.6,14.52334422]
[1625155023124,7.0759729,2119.7,2118.6,14.52334422]
[1625155023876,7.0759729,2119.7,2118.6,16.77849699]
[1625155024231,7.13594,2119.6,2118.6,16.77849699]
[1625155024327,7.13594,2119.6,2118.6,7.0972621]
[1625155024428,15.13594,2119.6,2118.6,7.0972621]
[1625155024577,15.07594,2119.6,2118.6,7.0972621]
[1625155024731,8.0,2119.6,2118.6,7.0972621]
[1625155025350,8.0,2119.6,2118.6,8.1946621]
[1625155025501,7.0759729,2119.7,2118.6,8.1946621]
[1625155025607,7.0759729,2119.7,2118.6,13.2046621]
[1625155026053,7.0759729,2119.7,2118.6,17.88701092]
[1625155026206,7.0759729,2119.7,2118.6,24.77528258]
[1625155026452,3.53799,2119.7,2118.6,24.77528258]
[1625155027229,9.7159515,2120.1,2118.7,0.02199449]
[1625155027324,9.7159515,2120.1,2118.8,0.15]
[1625155027534,6.179,2120.1,2118.8,0.15]
[1625155027681,6.179,2120.1,2118.8,5.04503731]
[1625155027777,6.179,2120.1,2118.9,15.08]
[1625155027874,6.179,2120.1,2119.0,0.01813028]
[1625155027975,6.179,2120.1,2119.0,5.7147682]
[1625155028128,10.2787,2120.5,2119.0,13.3307788]
[1625155028282,10.2787,2120.5,2119.7,7.07231]
[1625155028373,14.57093891,2120.8,2119.7,10.18841]
[1625155028525,14.57093891,2120.8,2119.7,8.13922534]
[1625155028676,3.5361,2120.6,2119.7,8.13922534]
[1625155028775,4.05172094,2120.8,2119.7,8.1261]
[1625155028875,0.51576544,2120.8,2119.8,0.00998069]
[1625155028973,0.51576544,2120.8,2119.7,10.76429107]
[1625155029175,10.7303,2120.9,2119.7,10.77701555]
[1625155029325,3.53555,2121.2,2119.7,10.77701555]
[1625155029492,10.60612,2121.2,2120.3,7.07037]
[1625155029590,10.60612,2121.2,2120.3,11.41717]
[1625155029740,10.60612,2121.2,2120.3,16.42717]
[1625155029892,0.06,2121.1,2120.3,16.42717]
[1625155030291,18.60612,2121.2,2120.3,16.42717]
[1625155030389,10.60612,2121.2,2120.3,16.42717]
[1625155030488,18.60612,2121.2,2120.3,16.42717]
[1625155030639,8.0,2121.1,2120.3,16.42717]
[1625155031188,10.60612,2121.2,2120.3,16.42717]
[1625155031290,18.60612,2121.2,2120.3,16.42717]
[1625155032035,7.07128,2121.0,2120.3,9.3568]
[1625155032184,3.53592,2120.9,2120.3,9.3568]
[1625155033135,10.60758,2120.9,2120.3,9.3568]
[1625155033290,10.60758,2120.9,2120.3,9.37824845]
[1625155033838,1.08904797,2121.1,2120.3,9.37824845]
[1625155034680,6.97783412,2120.8,2120.3,9.37824845]
[1625155035528,6.97783412,2120.8,2120.3,4.36824845]
[1625155035629,14.97783412,2120.8,2120.3,4.36824845]
[1625155035728,14.97783412,2120.8,2120.3,0.02144845]
[1625155037063,14.97783412,2120.8,2120.3,0.02144007]
[1625155037170,7.07218,2120.7,2120.3,0.02144007]
[1625155039421,8.16122797,2120.7,2120.3,0.02144007]
[1625155041265,1.08904797,2120.7,2120.3,0.02144007]
[1625155041565,1.08904797,2120.7,2120.3,0.02143282]
[1625155046571,1.08904797,2120.7,2120.3,0.02142899]
[1625155048864,1.08904797,2120.6,2120.3,0.02142899]
[1625155051417,1.08904797,2120.6,2120.3,0.02142487]
[1625155055762,11.69757797,2120.6,2120.3,0.02142487]
[1625155056011,24.70757797,2120.6,2120.3,0.02142487]
[1625155056766,24.70757797,2120.6,2120.3,0.02142096]
[1625155056964,0.1,2120.5,2120.3,0.02142096]
[1625155057315,24.70757797,2120.6,2120.3,0.02142096]
[1625155057519,12.62522797,2120.6,2120.3,0.02142096]
[1625155060160,7.07208,2120.5,2120.3,0.02142096]
[1625155061204,19.69699797,2120.6,2120.3,0.02142096]
[1625155061305,19.69699797,2120.6,2120.3,0.02141627]
[1625155062762,11.69699797,2120.6,2120.3,0.02141627]
[1625155063302,4.62522797,2120.6,2120.3,0.02141627]
[1625155064054,12.62522797,2120.6,2120.3,0.02141627]
[1625155064153,4.62522797,2120.6,2120.3,0.02141627]
[1625155064255,8.0,2120.5,2120.3,0.02141627]
[1625155064402,4.62522797,2120.6,2120.3,0.02141627]
[1625155064508,8.0,2120.5,2120.3,0.02141627]
[1625155064605,12.62522797,2120.6,2120.3,0.02141627]
[1625155064866,4.62522797,2120.6,2120.3,0.02141627]
[1625155064970,8.0,2120.5,2120.3,0.02141627]
[1625155065166,4.62522797,2120.6,2120.3,0.02141627]
[1625155065266,8.0,2120.5,2120.3,0.02141627]
[1625155066003,15.07207,2120.5,2120.3,0.02141627]
[1625155066260,24.55477,2120.5,2119.1,9.29515277]
[1625155066360,0.13402476,2120.4,2119.1,6.89]
[1625155066457,3.5372529,2120.0,2119.1,6.89]
[1625155066616,7.07576,2119.7,2119.1,6.89]
[1625155067065,3.5378412,2119.5,2119.1,6.89]
[1625155067253,7.0756412,2119.5,2119.1,6.89]
[1625155067359,11.35615453,2119.5,2119.1,6.89]
[1625155067506,10.32459453,2119.5,2119.1,6.89]
[1625155067964,1.08904797,2119.4,2119.1,6.89]
[1625155068916,7.07613,2119.3,2119.1,6.89]
[1625155070135,10.6144207,2119.3,2118.6,7.07613]
[1625155070277,18.6144207,2119.3,2118.6,12.08613]
[1625155070374,18.6144207,2119.3,2118.6,7.07613]
[1625155070472,18.6144207,2119.3,2118.6,12.08613]
[1625155070575,10.6144207,2119.3,2118.6,7.07613]
[1625155070675,18.6144207,2119.3,2118.6,7.07613]
[1625155070776,18.6144207,2119.3,2118.6,12.08613]
[1625155070879,8.0,2119.3,2118.6,5.01]
[1625155071027,8.0,2119.3,2118.5,15.5249]
[1625155071328,1.08904797,2119.4,2118.5,15.5249]
[1625155071432,1.08904797,2119.4,2118.6,2.62414088]
[1625155071528,1.08904797,2119.4,2118.6,7.77414088]
[1625155071782,1.08904797,2119.4,2118.6,7.63414088]
[1625155072180,1.08904797,2119.4,2118.8,7.07562]
[1625155072807,1.08904797,2119.4,2118.6,7.63414088]
[1625155073557,1.08904797,2119.4,2118.6,14.71015088]
[1625155073661,1.08904797,2119.4,2118.6,16.99751582]
[1625155073869,11.5378,2119.5,2118.6,16.99751582]
[1625155073870,3.5377276,2119.6,2118.6,16.83763082]
[1625155073964,1.08904797,2119.8,2118.7,0.14]
[1625155074062,1.08904797,2119.8,2118.7,0.15229154]
[1625155074214,3.53727,2120.1,2118.8,0.15]
[1625155074317,3.53727,2120.1,2118.8,5.20818207]
[1625155074463,4.28904797,2120.3,2118.9,15.01970479]
[1625155074615,4.28904797,2120.3,2118.9,22.41980479]
[1625155074714,4.28904797,2120.3,2119.6,7.07199]
[1625155074813,4.28904797,2120.3,2119.6,10.13529]
[1625155074916,4.28904797,2120.3,2119.6,15.14529]
[1625155077059,4.28904797,2120.3,2119.6,14.14529]
[1625155077965,1.08904797,2120.3,2119.6,16.75610713]
[1625155078112,20.2066,2120.9,2119.6,19.20510974]
[1625155078212,1.08904797,2120.8,2119.7,0.10277733]
[1625155078364,1.08904797,2120.8,2119.6,13.13311974]
[1625155078559,1.08904797,2120.8,2119.7,2.61081713]
[1625155078766,1.08904797,2120.8,2119.7,7.62081713]
[1625155079416,8.15031797,2120.8,2120.1,7.07093]
[1625155079563,8.15031797,2120.8,2120.1,17.12693]
[1625155079840,1.07904797,2120.7,2120.1,10.056]
[1625155079937,1.25904797,2120.7,2120.1,5.046]
[1625155080490,7.07256,2120.4,2120.1,5.046]
[1625155080590,7.07256,2120.4,2119.3,9.5805]
[1625155080689,0.2,2120.3,2119.3,0.15]
[1625155080791,29.77904797,2120.2,2119.1,26.4629]
[1625155080990,0.04,2120.1,2119.1,26.4629]
[1625155081190,29.77904797,2120.2,2119.1,26.4629]
[1625155081615,1.07904797,2120.2,2119.1,26.4629]
[1625155081769,7.07423,2119.9,2119.1,33.53705]
[1625155081868,7.07423,2119.9,2119.1,38.54705]
[1625155081969,11.10893,2119.9,2119.1,21.014]
[1625155082067,15.5721246,2119.9,2119.1,21.014]
[1625155082267,15.5721246,2119.9,2119.1,6.89]
[1625155082519,0.06,2119.8,2118.7,8.6555601]
[1625155082618,0.06,2119.8,2118.6,20.8239]
[1625155083069,7.0758,2119.4,2118.7,7.07545]
[1625155083267,7.0758,2119.4,2118.5,2.61081713]
[1625155083671,7.0758,2119.4,2118.5,7.62081713]
[1625155083776,3.5378452,2119.6,2118.5,9.90818207]
[1625155084976,10.6132352,2119.6,2118.5,16.98436207]
[1625155085171,18.6132352,2119.6,2118.5,16.98436207]
[1625155085961,10.6132352,2119.6,2118.5,16.98436207]
[1625155086211,18.6132352,2119.6,2118.5,16.98436207]
[1625155086310,10.6132352,2119.6,2118.5,16.98436207]
[1625155086512,18.6132352,2119.6,2118.5,16.98436207]
[1625155087917,0.01879671,2119.5,2118.5,16.98436207]
[1625155088167,1.07904797,2119.4,2118.5,16.98436207]
[1625155089623,1.07904797,2119.3,2118.5,16.98436207]
[1625155090969,1.07904797,2119.3,2118.5,15.98436207]
[1625155091622,1.07904797,2119.3,2118.5,10.97436207]
[1625155091873,1.07904797,2119.3,2118.5,15.98436207]
[1625155092728,12.26497797,2119.3,2118.5,8.90818207]
[1625155092872,12.26497797,2119.3,2118.5,6.62081713]
[1625155092981,0.01879,2119.1,2118.1,10.9892]
[1625155093122,3.5394202,2119.0,2118.1,10.9892]
[1625155093225,3.7394202,2119.0,2118.1,10.9892]
[1625155093422,3.7394202,2119.0,2117.8,6.89]
[1625155093576,0.19798095,2118.9,2117.8,6.89]
[1625155093675,0.12,2118.9,2117.8,6.89]
[1625155093827,7.07958,2118.5,2117.8,6.89]
[1625155094521,7.07958,2118.5,2117.8,11.9]
[1625155095324,7.07958,2118.5,2117.8,6.89]
[1625155095424,7.07958,2118.5,2117.8,11.9]
[1625155096597,2.41899892,2118.6,2117.8,18.9785]
[1625155096795,0.03259892,2118.6,2117.9,0.1]
[1625155096996,0.03259892,2118.6,2117.9,2.38736494]
[1625155097297,0.03259892,2118.6,2117.9,4.88179349]
[1625155097500,0.03259892,2118.6,2117.9,9.79179349]
[1625155098126,0.03259892,2118.6,2118.0,7.07778]
[1625155098325,0.03259892,2118.6,2118.0,12.08778]
[1625155098623,0.03259892,2118.6,2118.0,14.37514494]
[1625155099274,0.01877334,2118.4,2118.0,14.37514494]
[1625155099681,0.03259892,2118.6,2118.0,14.37514494]
[1625155099794,0.03259892,2118.6,2118.0,18.26884494]
[1625155099887,1.07904797,2118.8,2118.0,21.69641796]
[1625155100031,1.07904797,2118.8,2118.1,0.16]
[1625155100186,1.07904797,2118.7,2118.1,0.16]
[1625155100285,3.8,2119.4,2118.2,4.80174624]
[1625155100536,1.07904797,2119.3,2118.2,4.80174624]
[1625155100640,1.07904797,2119.2,2118.2,9.81174624]
[1625155100885,1.07904797,2119.2,2118.6,7.07582]
[1625155100986,1.07904797,2119.2,2118.6,11.02652]
[1625155101087,1.07904797,2119.2,2118.6,16.03652]
[1625155101189,1.07904797,2119.2,2118.7,2.30731769]
[1625155101286,1.07904797,2119.2,2118.7,2.32404555]
[1625155102193,1.07904797,2119.2,2118.7,2.30731769]
[1625155102637,1.07904797,2119.2,2118.7,11.74031769]
[1625155102789,1.07904797,2119.2,2118.7,2.30731769]
[1625155102890,1.07904797,2119.2,2118.4,9.58442]
[1625155103190,1.07904797,2119.2,2118.4,0.15]
[1625155103488,1.07904797,2119.2,2118.2,13.17612855]
[1625155103591,0.2,2119.1,2118.2,13.17612855]
[1625155104340,14.08904797,2119.2,2118.2,13.17612855]
[1625155104988,7.07798,2118.9,2118.2,13.17612855]
[1625155105083,7.07798,2118.9,2118.2,18.18612855]
[1625155105283,7.07798,2118.9,2118.2,7.50442855]
[1625155105386,20.9762862,2119.1,2118.2,2.49442855]
[1625155105484,20.9762862,2119.1,2118.2,7.50442855]
[1625155105585,20.9762862,2119.1,2118.2,2.49442855]
[1625155105685,9.4373,2119.1,2118.2,2.49442855]
[1625155105844,1.07904797,2119.2,2118.7,4.32185997]
[1625155105943,7.2382921,2119.5,2118.8,28.7]
[1625155105944,14.10830007,2119.5,2118.8,28.7]
[1625155106041,3.7,2119.5,2118.8,33.71]
[1625155106138,3.7,2119.5,2118.8,5.01]
[1625155106388,3.7,2119.5,2118.7,14.30906454]
[1625155106486,3.7,2119.5,2118.8,2.33277602]
[1625155107199,3.7,2119.5,2118.9,7.07478]
[1625155107447,3.7,2119.5,2118.9,12.08478]
[1625155107649,3.7,2119.5,2118.9,5.01]
[1625155107851,3.7,2119.5,2118.7,16.95510852]
[1625155107958,3.7,2119.5,2118.7,0.01775997]
[1625155108202,0.06,2119.4,2118.7,0.01775997]
[1625155108308,3.5984923,2119.4,2118.7,0.01775997]
[1625155108406,7.07691,2119.1,2118.7,0.01775997]
[1625155108660,10.63281,2119.1,2118.7,0.01775997]
[1625155108858,3.5559,2119.1,2118.7,0.01775997]
[1625155109013,0.04,2119.0,2118.7,0.01775997]
[1625155109197,3.53871,2119.4,2118.7,0.01775997]
[1625155109969,3.53871,2119.4,2118.3,14.00525997]
[1625155110071,7.0772023,2119.4,2118.3,14.00525997]
[1625155110172,7.07742,2119.0,2118.3,14.00525997]
[1625155110317,7.07742,2119.0,2118.3,5.01]
[1625155110472,7.07742,2119.0,2118.1,14.44562]
[1625155111120,7.07742,2119.0,2118.8,0.0177299]
[1625155111450,9.43588,2119.3,2118.8,0.0177299]
[1625155112101,0.08,2119.2,2118.8,0.0177299]
[1625155112602,3.5385742,2119.1,2118.8,0.0177299]
[1625155113102,3.53871,2119.4,2118.8,0.0177299]
[1625155113306,18.0248489,2119.5,2118.8,0.0177299]
[1625155113455,14.4868,2119.5,2118.8,0.0177299]
[1625155113996,14.4868,2119.5,2119.0,7.07538]
[1625155114093,3.7,2119.5,2119.0,7.07538]
[1625155114396,3.7,2119.5,2119.0,12.08538]
[1625155114498,3.7,2119.5,2119.0,15.83708]
[1625155116667,3.7,2119.5,2119.0,8.7617]
[1625155116818,3.7,2119.5,2119.0,5.01]
[1625155116917,3.7,2119.5,2118.9,0.01771066]
[1625155117166,0.04,2119.4,2118.9,0.01771066]
[1625155117419,3.7,2119.5,2118.9,0.01771066]